[Event "GER-ch Youth ODJM 2019"]
[Site "Willingen"]
[Date "2019.06.09"]
[Round "1.15"]
[White "Dietz, Florian"]
[Black "Matthes, Aaron"]
[Result "1-0"]
[ECO "C07"]
[WhiteElo "2139"]
[BlackElo "1791"]
[Annotator "NA"]
[PlyCount "50"]
[EventDate "2019.06.07"]
[EventType "swiss"]
[EventRounds "9"]
[EventCountry "GER"]
[SourceTitle "playchess.com"]
[Source "ChessBase"]
[SourceQuality "1"]
[TimeControl "40/5400+30:1800+30"]

1. e4 {[%emt 0:00:00]} e6 {[%emt 0:00:00]} 2. d4 {[%emt 0:00:00]} d5 {[%emt 0:00:00]} 3. Nd2 {[%emt 0:00:10]} c5 {[%emt 0:00:00]} 4. exd5 {[%emt 0:00:36]} Qxd5 {[%emt 0:00:00]} 5. Ngf3 {[%emt 0:00:35]} cxd4 {[%emt 0:00:04]} 6. Bc4 {[%emt 0:00:12]} Qd7 {[%emt 0:00:05]} 7. O-O {[%emt 0:06:20]} Nc6 {[%emt 0:00:19]} 8. Nb3 {[%emt 0:00:40]} Nf6 {[%emt 0:00:12]} 9. Nbxd4 {[%emt 0:01:45]} Nxd4 {[%emt 0:00:11]} 10. Nxd4 {[%emt 0:01:05]} a6 {[%emt 0:00:04]} 11. a4 {[%emt 0:11:21]} Bc5 {[%emt 0:00:31]} 12. Nb3 {[%emt 0:01:27]} Qxd1 {[%emt 0:04:38]} 13. Rxd1 {[%emt 0:00:05]} Ba7 {[%emt 0:00:06]} 14. Bf4 {[%emt 0:09:21]} Ne4 {[%emt 0:14:49]} 15. Rf1 {[%emt 0:10:56]} Bd7 {[%emt 0:13:58]} 16. Bd3 {[%emt 0:07:38]} Nc5 {[%emt 0:12:05]} 17. Nxc5 {[%emt 0:06:03]} Bxc5 {[%emt 0:01:09]} 18. c3 {[%emt 0:01:07]} Rc8 {[%emt 0:07:00]} 19. Rfd1 {[%emt 0:04:06]} Bc6 {[%emt 0:03:03]} 20. b4 {[%emt 0:04:05]} Be7 {[%emt 0:00:06]} 21. b5 {[%emt 0:02:07]} Bd5 {[%emt 0:02:15]} 22. c4 {[%emt 0:03:35]} Bxc4 {[%emt 0:03:54]} 23. Rac1 {[%emt 0:06:28]} axb5 {[%emt 0:00:05]} 24. axb5 {[%emt 0:00:14]} e5 {[%emt 0:00:04]} 25. Bxe5 {[%emt 0:01:35]} f6 {[%emt 0:03:32] normal} 1-0

[Event "GER-ch Youth ODJM 2019"]
[Site "Willingen"]
[Date "2019.06.09"]
[Round "1.16"]
[White "Gluma, Christian"]
[Black "Stemmler, Fabian"]
[Result "1/2-1/2"]
[ECO "C54"]
[WhiteElo "1741"]
[BlackElo "2014"]
[Annotator "NA"]
[PlyCount "58"]
[EventDate "2019.06.07"]
[EventType "swiss"]
[EventRounds "9"]
[EventCountry "GER"]
[SourceTitle "playchess.com"]
[Source "ChessBase"]
[SourceQuality "1"]
[TimeControl "40/5400+30:1800+30"]

1. e4 {[%emt 0:00:00]} e5 {[%emt 0:00:00]} 2. Nf3 {[%emt 0:00:00]} Nc6 {[%emt 0:00:00]} 3. Bc4 {[%emt 0:00:00]} Bc5 {[%emt 0:00:11]} 4. c3 {[%emt 0:00:00]} Nf6 {[%emt 0:00:07]} 5. d4 {[%emt 0:00:00]} exd4 {[%emt 0:00:08]} 6. O-O {[%emt 0:00:03]} d5 {[%emt 0:12:54]} 7. exd5 {[%emt 0:00:09]} Nxd5 {[%emt 0:00:09]} 8. cxd4 {[%emt 0:00:08]} Be7 {[%emt 0:10:52]} 9. Bxd5 {[%emt 0:01:29]} Qxd5 {[%emt 0:02:51]} 10. Nc3 {[%emt 0:00:06]} Qd8 {[%emt 0:08:54]} 11. d5 {[%emt 0:02:49]} Nb8 {[%emt 0:01:37]} 12. Bf4 {[%emt 0:02:17]} O-O {[%emt 0:23:50]} 13. Nb5 {[%emt 0:04:00]} Na6 {[%emt 0:02:03]} 14. Rc1 {[%emt 0:02:24]} c6 {[%emt 0:03:13]} 15. d6 {[%emt 0:04:57]} Bf6 {[%emt 0:05:39]} 16. Nc7 {[%emt 0:01:58]} Nxc7 {[%emt 0:01:04]} 17. dxc7 {[%emt 0:00:05]} Qxd1 {[%emt 0:01:29]} 18. Rcxd1 {[%emt 0:00:34]} Be6 {[%emt 0:04:52]} 19. b3 {[%emt 0:05:02]} Rac8 {[%emt 0:07:54]} 20. Nd4 {[%emt 0:02:47]} Bxd4 {[%emt 0:02:01]} 21. Rxd4 {[%emt 0:00:22]} f6 {[%emt 0:01:03]} 22. Re1 {[%emt 0:05:53]} Bd5 {[%emt 0:03:22]} 23. Rd2 {[%emt 0:06:00]} Rfe8 {[%emt 0:02:34]} 24. Rde2 {[%emt 0:02:48]} Rxe2 {[%emt 0:00:20]} 25. Rxe2 {[%emt 0:00:03]} Kf7 {[%emt 0:00:19]} 26. Bd6 {[%emt 0:02:18]} Be6 {[%emt 0:00:06]} 27. f4 {[%emt 0:02:36]} Re8 {[%emt 0:01:29]} 28. h3 {[%emt 0:02:47]} h5 {[%emt 0:01:07]} 29. Kf2 {[%emt 0:01:43]} Bf5 {[%emt 0:00:20] normal} 1/2-1/2

[Event "GER-ch Youth ODJM 2019"]
[Site "Willingen"]
[Date "2019.06.09"]
[Round "2.1"]
[White "Petri, Ben-Luca"]
[Black "Schmied, Elias"]
[Result "1-0"]
[ECO "C10"]
[WhiteElo "1895"]
[BlackElo "1669"]
[Annotator "NA"]
[PlyCount "37"]
[EventDate "2019.06.07"]
[EventType "swiss"]
[EventRounds "9"]
[EventCountry "GER"]
[SourceTitle "playchess.com"]
[Source "ChessBase"]
[SourceQuality "1"]
[TimeControl "40/5400+30:1800+30"]

1. e4 {[%emt 0:00:00]} e6 {[%emt 0:00:00]} 2. d4 {[%emt 0:00:00]} d5 {[%emt 0:00:00]} 3. Nd2 {[%emt 0:00:00]} dxe4 {[%emt 0:00:00]} 4. Nxe4 {[%emt 0:00:00]} Bd7 {[%emt 0:00:50]} 5. Nf3 {[%emt 0:02:22]} Bc6 {[%emt 0:00:04]} 6. Bd3 {[%emt 0:00:28]} Be7 {[%emt 0:00:10]} 7. O-O {[%emt 0:00:55]} Nf6 {[%emt 0:00:04]} 8. Nxf6+ {[%emt 0:00:51]} Bxf6 {[%emt 0:00:13]} 9. c3 {[%emt 0:00:15]} Nd7 {[%emt 0:00:53]} 10. Qe2 {[%emt 0:00:12]} O-O {[%emt 0:01:13]} 11. Bf4 {[%emt 0:00:23]} b6 {[%emt 0:00:53]} 12. Rad1 {[%emt 0:01:15]} Bb7 {[%emt 0:03:54]} 13. Rfe1 {[%emt 0:01:35]} Qc8 {[%emt 0:04:32]} 14. Ne5 {[%emt 0:04:15]} g6 {[%emt 0:03:14]} 15. Ng4 {[%emt 0:03:15]} Bg7 {[%emt 0:01:02]} 16. Bh6 {[%emt 0:02:25]} c5 {[%emt 0:02:53]} 17. Bxg7 {[%emt 0:00:22]} Kxg7 {[%emt 0:00:07]} 18. Bb5 {[%emt 0:01:51]} Bc6 {[%emt 0:04:04]} 19. dxc5 {[%emt 0:02:49] normal} 1-0

[Event "GER-ch Youth ODJM 2019"]
[Site "Willingen"]
[Date "2019.06.09"]
[Round "2.2"]
[White "Terhuven, Patrick"]
[Black "Wachinger, David"]
[Result "1-0"]
[ECO "A48"]
[WhiteElo "2210"]
[BlackElo "2066"]
[Annotator "NA"]
[PlyCount "25"]
[EventDate "2019.06.07"]
[EventType "swiss"]
[EventRounds "9"]
[EventCountry "GER"]
[SourceTitle "playchess.com"]
[Source "ChessBase"]
[SourceQuality "1"]
[TimeControl "40/5400+30:1800+30"]

1. d4 {[%emt 0:00:00]} Nf6 {[%emt 0:00:00]} 2. Nf3 {[%emt 0:00:00]} g6 {[%emt 0:00:00]} 3. c4 {[%emt 0:00:00]} Bg7 {[%emt 0:00:04]} 4. g3 {[%emt 0:00:06]} O-O {[%emt 0:00:12]} 5. Bg2 {[%emt 0:00:05]} c5 {[%emt 0:00:31]} 6. O-O {[%emt 0:00:59]} cxd4 {[%emt 0:02:48]} 7. Nxd4 {[%emt 0:00:56]} d5 {[%emt 0:01:02]} 8. cxd5 {[%emt 0:02:02]} Nxd5 {[%emt 0:00:23]} 9. Nc3 {[%emt 0:06:29]} Nxc3 {[%emt 0:13:58]} 10. bxc3 {[%emt 0:01:20]} Qc7 {[%emt 0:08:36]} 11. Rb1 {[%emt 0:12:52]} Nc6 {[%emt 0:16:21]} 12. Nxc6 {[%emt 0:02:29]} bxc6 {[%emt 0:00:02]} 13. Qa4 {[%emt 0:02:17] normal} 1-0

[Event "GER-ch Youth ODJM 2019"]
[Site "Willingen"]
[Date "2019.06.09"]
[Round "2.3"]
[White "Doll, Alexander"]
[Black "Oberhofer, Cedric"]
[Result "1-0"]
[ECO "B90"]
[WhiteElo "1991"]
[BlackElo "2243"]
[Annotator "NA"]
[PlyCount "30"]
[EventDate "2019.06.07"]
[EventType "swiss"]
[EventRounds "9"]
[EventCountry "GER"]
[SourceTitle "playchess.com"]
[Source "ChessBase"]
[SourceQuality "1"]
[TimeControl "40/5400+30:1800+30"]

1. e4 {[%emt 0:00:00]} c5 {[%emt 0:00:00]} 2. Nf3 {[%emt 0:00:00]} d6 {[%emt 0:00:00]} 3. d4 {[%emt 0:00:00]} cxd4 {[%emt 0:00:00]} 4. Nxd4 {[%emt 0:00:00]} Nf6 {[%emt 0:00:00]} 5. Nc3 {[%emt 0:00:04]} a6 {[%emt 0:00:00]} 6. Be3 {[%emt 0:00:43]} e5 {[%emt 0:00:42]} 7. Nb3 {[%emt 0:01:28]} Be6 {[%emt 0:01:15]} 8. f3 {[%emt 0:02:23]} Be7 {[%emt 0:01:54]} 9. Qd2 {[%emt 0:01:56]} O-O {[%emt 0:01:25]} 10. O-O-O {[%emt 0:00:09]} a5 {[%emt 0:00:16]} 11. a4 {[%emt 0:01:50]} Nc6 {[%emt 0:04:56]} 12. Kb1 {[%emt 0:02:04]} Nb4 {[%emt 0:00:56]} 13. g4 {[%emt 0:03:39]} Rc8 {[%emt 0:08:56]} 14. h4 Nd7 {[%emt 0:14:34]} 15. Qf2 {[%emt 0:16:17]} Qc7 {[%emt 0:07:27] normal} 1-0

[Event "GER-ch Youth ODJM 2019"]
[Site "Willingen"]
[Date "2019.06.09"]
[Round "2.4"]
[White "Brunner, Tobias"]
[Black "Hesse, Henrik"]
[Result "1/2-1/2"]
[ECO "C48"]
[WhiteElo "2017"]
[BlackElo "2166"]
[Annotator "NA"]
[PlyCount "28"]
[EventDate "2019.06.07"]
[EventType "swiss"]
[EventRounds "9"]
[EventCountry "GER"]
[SourceTitle "playchess.com"]
[Source "ChessBase"]
[SourceQuality "1"]
[TimeControl "40/5400+30:1800+30"]

1. e4 {[%emt 0:00:00]} e5 {[%emt 0:00:20]} 2. Nf3 {[%emt 0:00:05]} Nf6 {[%emt 0:00:09]} 3. Nc3 {[%emt 0:01:49]} Nc6 {[%emt 0:00:54]} 4. Bb5 {[%emt 0:02:32]} d6 {[%emt 0:06:59]} 5. h3 {[%emt 0:02:52]} Be7 {[%emt 0:05:26]} 6. d3 {[%emt 0:02:54]} h6 {[%emt 0:02:57]} 7. Be3 {[%emt 0:01:19]} Bd7 {[%emt 0:06:02]} 8. Qd2 {[%emt 0:02:59]} a6 {[%emt 0:01:02]} 9. Bxc6 {[%emt 0:00:40]} Bxc6 {[%emt 0:02:26]} 10. Ne2 {[%emt 0:01:25]} Bf8 {[%emt 0:08:43]} 11. Ng3 {[%emt 0:01:56]} g6 {[%emt 0:02:32]} 12. O-O {[%emt 0:01:47]} Bg7 {[%emt 0:00:37]} 13. c4 {[%emt 0:02:16]} Qe7 {[%emt 0:02:09]} 14. a4 {[%emt 0:05:40]} a5 {[%emt 0:05:57] normal} 1/2-1/2

[Event "GER-ch Youth ODJM 2019"]
[Site "Willingen"]
[Date "2019.06.09"]
[Round "2.5"]
[White "Knudsen, Simon"]
[Black "Parvanyan, Alfred"]
[Result "1/2-1/2"]
[ECO "B31"]
[WhiteElo "2166"]
[BlackElo "2066"]
[Annotator "NA"]
[PlyCount "44"]
[EventDate "2019.06.07"]
[EventType "swiss"]
[EventRounds "9"]
[EventCountry "GER"]
[SourceTitle "playchess.com"]
[Source "ChessBase"]
[SourceQuality "1"]
[TimeControl "40/5400+30:1800+30"]

1. e4 {[%emt 0:00:00]} c5 {[%emt 0:00:00]} 2. Nf3 {[%emt 0:00:00]} Nc6 {[%emt 0:00:00]} 3. Bb5 {[%emt 0:00:00]} g6 {[%emt 0:00:11]} 4. Bxc6 {[%emt 0:00:00]} dxc6 {[%emt 0:00:07]} 5. d3 {[%emt 0:00:01]} Bg7 {[%emt 0:00:09]} 6. h3 {[%emt 0:00:06]} e5 {[%emt 0:00:21]} 7. a4 {[%emt 0:00:09]} a5 {[%emt 0:03:34]} 8. Be3 {[%emt 0:00:15]} b6 {[%emt 0:00:05]} 9. Na3 {[%emt 0:00:09]} Qc7 {[%emt 0:00:18]} 10. Nc4 {[%emt 0:02:05]} Ne7 {[%emt 0:00:42]} 11. b4 {[%emt 0:06:37]} axb4 {[%emt 0:11:50]} 12. a5 {[%emt 0:00:10]} bxa5 {[%emt 0:00:13]} 13. Bxc5 {[%emt 0:00:06]} O-O {[%emt 0:02:20]} 14. Bxb4 {[%emt 0:01:17]} a4 {[%emt 0:01:53]} 15. Bd6 {[%emt 0:01:35]} Qd8 {[%emt 0:01:46]} 16. Bxe5 {[%emt 0:01:21]} Bxe5 {[%emt 0:00:54]} 17. Ncxe5 {[%emt 0:00:07]} Be6 {[%emt 0:01:54]} 18. Qd2 {[%emt 0:02:38]} Qd6 {[%emt 0:02:10]} 19. Ng4 {[%emt 0:04:29]} Bxg4 {[%emt 0:12:47]} 20. hxg4 {[%emt 0:00:08]} f6 {[%emt 0:00:04]} 21. Qc3 {[%emt 0:00:31]} Qe6 {[%emt 0:02:30]} 22. g5 {[%emt 0:02:07]} Nd5 {[%emt 0:04:25] normal} 1/2-1/2

[Event "GER-ch Youth ODJM 2019"]
[Site "Willingen"]
[Date "2019.06.09"]
[Round "2.6"]
[White "Gerlach, Felix Tobias"]
[Black "Weber, Samuel"]
[Result "1/2-1/2"]
[ECO "A15"]
[WhiteElo "2079"]
[BlackElo "2160"]
[Annotator "NA"]
[PlyCount "27"]
[EventDate "2019.06.07"]
[EventType "swiss"]
[EventRounds "9"]
[EventCountry "GER"]
[SourceTitle "playchess.com"]
[Source "ChessBase"]
[SourceQuality "1"]
[TimeControl "40/5400+30:1800+30"]

1. c4 {[%emt 0:00:00]} Nf6 {[%emt 0:00:00]} 2. g3 {[%emt 0:00:00]} g6 {[%emt 0:02:18]} 3. Bg2 {[%emt 0:00:09]} Bg7 {[%emt 0:00:16]} 4. Nc3 {[%emt 0:00:05]} c5 {[%emt 0:01:03]} 5. Nf3 {[%emt 0:06:59]} O-O {[%emt 0:00:29]} 6. O-O {[%emt 0:00:10]} d6 {[%emt 0:00:55]} 7. d4 {[%emt 0:02:41]} Nbd7 {[%emt 0:06:37]} 8. b3 {[%emt 0:12:56]} a6 {[%emt 0:03:56]} 9. Bb2 {[%emt 0:01:25]} Rb8 {[%emt 0:03:42]} 10. Rc1 {[%emt 0:04:56]} b6 {[%emt 0:03:54]} 11. h3 {[%emt 0:08:57]} Bb7 {[%emt 0:00:57]} 12. d5 {[%emt 0:00:41]} b5 {[%emt 0:02:37]} 13. Nd2 {[%emt 0:02:25]} b4 {[%emt 0:04:08]} 14. Na4 {[%emt 0:00:55] normal} 1/2-1/2

[Event "GER-ch Youth ODJM 2019"]
[Site "Willingen"]
[Date "2019.06.09"]
[Round "2.7"]
[White "Schimnatkowski, Lukas"]
[Black "Beesk, Kevin"]
[Result "1-0"]
[ECO "A36"]
[WhiteElo "2139"]
[BlackElo "1935"]
[Annotator "NA"]
[PlyCount "33"]
[EventDate "2019.06.07"]
[EventType "swiss"]
[EventRounds "9"]
[EventCountry "GER"]
[SourceTitle "playchess.com"]
[Source "ChessBase"]
[SourceQuality "1"]
[TimeControl "40/5400+30:1800+30"]

1. c4 {[%emt 0:00:00]} c5 {[%emt 0:00:23]} 2. Nc3 {[%emt 0:00:00]} Nc6 {[%emt 0:02:57]} 3. g3 {[%emt 0:00:00]} g6 {[%emt 0:00:03]} 4. Bg2 {[%emt 0:00:00]} Bg7 {[%emt 0:00:02]} 5. d3 {[%emt 0:00:00]} d6 {[%emt 0:01:07]} 6. Bd2 {[%emt 0:01:49]} e5 {[%emt 0:01:21]} 7. a3 {[%emt 0:00:56]} a5 {[%emt 0:01:53]} 8. e3 {[%emt 0:00:34]} Nge7 {[%emt 0:00:19]} 9. Nge2 {[%emt 0:00:10]} O-O {[%emt 0:01:25]} 10. Rb1 {[%emt 0:05:24]} Rb8 {[%emt 0:06:42]} 11. Nd5 {[%emt 0:08:34]} Bd7 {[%emt 0:08:01]} 12. Nec3 {[%emt 0:07:46]} f5 {[%emt 0:05:12]} 13. b4 {[%emt 0:04:20]} axb4 {[%emt 0:00:16]} 14. axb4 {[%emt 0:01:21]} Nxb4 {[%emt 0:04:19]} 15. Nxb4 {[%emt 0:01:14]} cxb4 {[%emt 0:00:09]} 16. Rxb4 {[%emt 0:01:36]} Bc6 {[%emt 0:00:18]} 17. O-O {[%emt 0:03:23] normal} 1-0

[Event "GER-ch Youth ODJM 2019"]
[Site "Willingen"]
[Date "2019.06.09"]
[Round "2.8"]
[White "Tscheuschner, Georg"]
[Black "Kotyk, Michael"]
[Result "1-0"]
[ECO "A20"]
[WhiteElo "2113"]
[BlackElo "1966"]
[Annotator "NA"]
[PlyCount "35"]
[EventDate "2019.06.07"]
[EventType "swiss"]
[EventRounds "9"]
[EventCountry "GER"]
[SourceTitle "playchess.com"]
[Source "ChessBase"]
[SourceQuality "1"]
[TimeControl "40/5400+30:1800+30"]

1. c4 {[%emt 0:00:00]} e5 {[%emt 0:00:00]} 2. g3 {[%emt 0:00:00]} d6 {[%emt 0:00:00]} 3. Bg2 {[%emt 0:00:00]} f5 {[%emt 0:00:00]} 4. d4 {[%emt 0:00:10]} Be7 {[%emt 0:00:00]} 5. Nc3 {[%emt 0:03:12]} Nf6 {[%emt 0:00:00]} 6. Nf3 {[%emt 0:00:55]} e4 {[%emt 0:00:02]} 7. Ng5 {[%emt 0:00:18]} c6 {[%emt 0:00:56]} 8. f3 {[%emt 0:05:13]} d5 {[%emt 0:04:25]} 9. O-O {[%emt 0:08:52]} O-O {[%emt 0:01:28]} 10. cxd5 {[%emt 0:03:34]} cxd5 {[%emt 0:01:32]} 11. fxe4 {[%emt 0:05:43]} fxe4 {[%emt 0:00:14]} 12. Qb3 {[%emt 0:03:33]} Kh8 {[%emt 0:01:46]} 13. Nxd5 {[%emt 0:14:36]} Qxd5 {[%emt 0:01:36]} 14. Rxf6 {[%emt 0:00:10]} Qxd4+ {[%emt 0:00:27]} 15. Be3 {[%emt 0:00:05]} Qxe3+ {[%emt 0:10:13]} 16. Qxe3 {[%emt 0:00:08]} Bxf6 {[%emt 0:00:01]} 17. Rf1 {[%emt 0:06:14]} Nc6 {[%emt 0:00:19]} 18. Qxe4 {[%emt 0:00:32] normal} 1-0

[Event "GER-ch Youth ODJM 2019"]
[Site "Willingen"]
[Date "2019.06.09"]
[Round "2.9"]
[White "Lohr, Maximilian"]
[Black "Wanner, Lukas"]
[Result "1-0"]
[ECO "B06"]
[WhiteElo "1981"]
[BlackElo "2099"]
[Annotator "NA"]
[PlyCount "20"]
[EventDate "2019.06.07"]
[EventType "swiss"]
[EventRounds "9"]
[EventCountry "GER"]
[SourceTitle "playchess.com"]
[Source "ChessBase"]
[SourceQuality "1"]
[TimeControl "40/5400+30:1800+30"]

1. e4 {[%emt 0:00:00]} g6 {[%emt 0:00:00]} 2. g3 {[%emt 0:01:19]} d5 {[%emt 0:03:19]} 3. e5 {[%emt 0:01:28]} c5 {[%emt 0:02:22]} 4. c3 {[%emt 0:02:23]} Nc6 {[%emt 0:04:11]} 5. d4 {[%emt 0:02:39]} cxd4 {[%emt 0:04:51]} 6. cxd4 {[%emt 0:00:07]} Nh6 {[%emt 0:01:49]} 7. Nc3 {[%emt 0:02:33]} Bg7 {[%emt 0:09:35]} 8. Bg2 {[%emt 0:01:04]} Be6 {[%emt 0:01:53]} 9. Nge2 {[%emt 0:03:33]} Nf5 {[%emt 0:05:29]} 10. O-O {[%emt 0:01:52]} O-O {[%emt 0:12:49] normal} 1-0

[Event "GER-ch Youth ODJM 2019"]
[Site "Willingen"]
[Date "2019.06.09"]
[Round "2.10"]
[White "Hartmann, Jakob"]
[Black "Teichert, Felix"]
[Result "1/2-1/2"]
[ECO "B13"]
[WhiteElo "2144"]
[BlackElo "2027"]
[Annotator "NA"]
[PlyCount "24"]
[EventDate "2019.06.07"]
[EventType "swiss"]
[EventRounds "9"]
[EventCountry "GER"]
[SourceTitle "playchess.com"]
[Source "ChessBase"]
[SourceQuality "1"]
[TimeControl "40/5400+30:1800+30"]

1. e4 {[%emt 0:00:00]} c6 {[%emt 0:00:00]} 2. d4 {[%emt 0:03:23]} d5 {[%emt 0:00:00]} 3. exd5 {[%emt 0:00:40]} cxd5 {[%emt 0:00:00]} 4. c4 {[%emt 0:00:19]} Nf6 {[%emt 0:00:09]} 5. Nc3 {[%emt 0:00:26]} Nc6 {[%emt 0:00:19]} 6. Be3 {[%emt 0:02:17]} g6 {[%emt 0:00:51]} 7. h3 {[%emt 0:02:37]} Bg7 {[%emt 0:03:26]} 8. Nf3 {[%emt 0:04:03]} O-O {[%emt 0:01:58]} 9. Be2 {[%emt 0:09:23]} h6 {[%emt 0:07:20]} 10. O-O {[%emt 0:02:09]} Be6 {[%emt 0:01:32]} 11. c5 {[%emt 0:09:50]} Ne4 {[%emt 0:02:00]} 12. Qc1 {[%emt 0:15:43]} Kh7 {[%emt 0:06:01] normal} 1/2-1/2

[Event "GER-ch Youth ODJM 2019"]
[Site "Willingen"]
[Date "2019.06.09"]
[Round "2.11"]
[White "Stelmaszyk, Nico"]
[Black "Fistoul, Boris"]
[Result "1-0"]
[ECO "C10"]
[WhiteElo "2174"]
[BlackElo "1918"]
[Annotator "NA"]
[PlyCount "26"]
[EventDate "2019.06.07"]
[EventType "swiss"]
[EventRounds "9"]
[EventCountry "GER"]
[SourceTitle "playchess.com"]
[Source "ChessBase"]
[SourceQuality "1"]
[TimeControl "40/5400+30:1800+30"]

1. e4 {[%emt 0:00:00]} e6 {[%emt 0:00:14]} 2. d4 {[%emt 0:00:00]} d5 {[%emt 0:00:08]} 3. Nc3 {[%emt 0:00:00]} dxe4 {[%emt 0:00:32]} 4. Nxe4 {[%emt 0:00:03]} Nf6 {[%emt 0:01:39]} 5. Nxf6+ {[%emt 0:00:14]} Qxf6 {[%emt 0:00:18]} 6. Nf3 {[%emt 0:00:06]} h6 {[%emt 0:01:50]} 7. Be3 {[%emt 0:05:28]} Bd7 {[%emt 0:01:58]} 8. Qd2 {[%emt 0:01:56]} Bc6 {[%emt 0:03:37]} 9. Ne5 {[%emt 0:03:18]} Bd6 {[%emt 0:04:39]} 10. O-O-O {[%emt 0:01:22]} Qe7 {[%emt 0:10:13]} 11. f4 {[%emt 0:10:03]} Bxe5 {[%emt 0:08:30]} 12. dxe5 {[%emt 0:02:16]} Nd7 {[%emt 0:02:08]} 13. Qa5 {[%emt 0:03:44]} Rc8 {[%emt 0:10:03] normal} 1-0

[Event "GER-ch Youth ODJM 2019"]
[Site "Willingen"]
[Date "2019.06.09"]
[Round "2.12"]
[White "Grund, Sebastian"]
[Black "Dietz, Florian"]
[Result "1/2-1/2"]
[ECO "E15"]
[WhiteElo "2051"]
[BlackElo "2139"]
[Annotator "NA"]
[PlyCount "37"]
[EventDate "2019.06.07"]
[EventType "swiss"]
[EventRounds "9"]
[EventCountry "GER"]
[SourceTitle "playchess.com"]
[Source "ChessBase"]
[SourceQuality "1"]
[TimeControl "40/5400+30:1800+30"]

1. d4 {[%emt 0:00:00]} Nf6 {[%emt 0:00:00]} 2. Nf3 {[%emt 0:00:00]} e6 {[%emt 0:00:00]} 3. c4 {[%emt 0:00:04]} b6 {[%emt 0:00:06]} 4. g3 {[%emt 0:00:06]} Ba6 {[%emt 0:00:40]} 5. b3 {[%emt 0:00:08]} Bb4+ {[%emt 0:00:08]} 6. Bd2 {[%emt 0:00:06]} Be7 {[%emt 0:00:13]} 7. Bg2 {[%emt 0:00:09]} Bb7 {[%emt 0:00:16]} 8. Nc3 {[%emt 0:00:24]} d5 {[%emt 0:00:23]} 9. cxd5 {[%emt 0:00:12]} exd5 {[%emt 0:00:07]} 10. O-O {[%emt 0:00:07]} O-O {[%emt 0:00:23]} 11. Qc2 {[%emt 0:00:11]} Nbd7 {[%emt 0:02:42]} 12. Ne5 {[%emt 0:06:25]} c5 {[%emt 0:04:36]} 13. Nxd7 {[%emt 0:08:21]} Qxd7 {[%emt 0:00:14]} 14. dxc5 {[%emt 0:00:23]} bxc5 {[%emt 0:02:56]} 15. Rad1 {[%emt 0:00:48]} Rfd8 {[%emt 0:05:26]} 16. Bg5 {[%emt 0:00:43]} Qe6 {[%emt 0:06:33]} 17. Nb5 {[%emt 0:13:26]} Ne8 {[%emt 0:11:17]} 18. Bxe7 {[%emt 0:04:40]} Qxe7 {[%emt 0:00:04]} 19. Rfe1 {[%emt 0:00:31] normal} 1/2-1/2

[Event "GER-ch Youth ODJM 2019"]
[Site "Willingen"]
[Date "2019.06.09"]
[Round "2.13"]
[White "Schlick, Stefan"]
[Black "Wuebker, Paul-Luca"]
[Result "0-1"]
[ECO "A50"]
[WhiteElo "2017"]
[BlackElo "2035"]
[Annotator "NA"]
[PlyCount "20"]
[EventDate "2019.06.07"]
[EventType "swiss"]
[EventRounds "9"]
[EventCountry "GER"]
[SourceTitle "playchess.com"]
[Source "ChessBase"]
[SourceQuality "1"]
[TimeControl "40/5400+30:1800+30"]

1. d4 {[%emt 0:00:00]} Nf6 {[%emt 0:00:00]} 2. c4 {[%emt 0:00:00]} Nc6 {[%emt 0:00:00]} 3. d5 {[%emt 0:19:01]} Ne5 {[%emt 0:00:00]} 4. e3 {[%emt 0:01:27]} e6 {[%emt 0:00:10]} 5. dxe6 {[%emt 0:04:00]} fxe6 {[%emt 0:00:15]} 6. Nd2 {[%emt 0:04:36]} Bb4 {[%emt 0:04:44]} 7. a3 {[%emt 0:01:58]} Bxd2+ {[%emt 0:00:30]} 8. Bxd2 {[%emt 0:04:40]} O-O {[%emt 0:07:39]} 9. Be2 {[%emt 0:01:22]} Ne4 {[%emt 0:01:44]} 10. Nf3 {[%emt 0:02:25]} Qf6 {[%emt 0:14:06] normal} 0-1

[Event "GER-ch Youth ODJM 2019"]
[Site "Willingen"]
[Date "2019.06.09"]
[Round "2.14"]
[White "Savchenko, Daniel"]
[Black "Reimer, Philip"]
[Result "1-0"]
[ECO "B34"]
[WhiteElo "2120"]
[BlackElo "1891"]
[Annotator "NA"]
[PlyCount "45"]
[EventDate "2019.06.07"]
[EventType "swiss"]
[EventRounds "9"]
[EventCountry "GER"]
[SourceTitle "playchess.com"]
[Source "ChessBase"]
[SourceQuality "1"]
[TimeControl "40/5400+30:1800+30"]

1. e4 {[%emt 0:00:00]} c5 {[%emt 0:00:00]} 2. Nf3 {[%emt 0:00:00]} Nc6 {[%emt 0:00:00]} 3. d4 {[%emt 0:00:00]} cxd4 {[%emt 0:00:00]} 4. Nxd4 {[%emt 0:00:09]} Nf6 {[%emt 0:00:00]} 5. Nc3 {[%emt 0:00:17]} e5 {[%emt 0:00:00]} 6. Ndb5 {[%emt 0:00:21]} d6 {[%emt 0:00:00]} 7. Nd5 {[%emt 0:00:17]} Nxd5 {[%emt 0:00:00]} 8. exd5 {[%emt 0:00:09]} Nb8 {[%emt 0:00:00]} 9. c4 {[%emt 0:00:29]} Be7 {[%emt 0:00:09]} 10. Be2 {[%emt 0:00:15]} O-O {[%emt 0:00:08]} 11. Be3 {[%emt 0:00:10]} a6 {[%emt 0:00:10]} 12. Nc3 {[%emt 0:00:08]} f5 {[%emt 0:00:34]} 13. f4 {[%emt 0:00:37]} Nd7 {[%emt 0:00:21]} 14. O-O {[%emt 0:00:15]} Bf6 {[%emt 0:00:33]} 15. Qd2 {[%emt 0:01:25]} exf4 {[%emt 0:03:17]} 16. Bxf4 {[%emt 0:02:34]} Be5 {[%emt 0:05:31]} 17. Rac1 {[%emt 0:08:13]} Bxf4 {[%emt 0:02:16]} 18. Qxf4 {[%emt 0:00:34]} Ne5 {[%emt 0:01:19]} 19. Kh1 {[%emt 0:00:22]} b6 {[%emt 0:13:39]} 20. b4 {[%emt 0:02:03]} Bd7 {[%emt 0:08:38]} 21. c5 {[%emt 0:01:32]} bxc5 {[%emt 0:01:47]} 22. bxc5 {[%emt 0:02:50]} Bb5 {[%emt 0:03:27]} 23. Rfd1 {[%emt 0:03:48] normal} 1-0